Cogmind - Beta 16 @@@ ROGUE MODE // 2026.01.07 @ 02:21:24 Player: Rocket Result: Self-destructed Performance ------------- Evolutions (0) 0 Regions Visited (3) 600 Robots Destroyed (0) 0 Value Destroyed (0) 0 Prototype IDs (6) 120 Alien Tech Used (0) 0 Bonus (800) 800 TOTAL SCORE: 1520 Bonus ------- Registered with UFD 300 Met Optimus in HQ 500 Cogmind --------- Core Integrity 63/250 Matter 300/300 Energy 250/250 System Corruption 0% Temperature Cool (0) Movement Rolling (100) Location -9/Scraptown Parts ------- > --- POWER (1) -------- Ion Engine > --- PROPULSION (2) --- Compact Wheel Compact Wheel > --- UTILITY (2) ------ Small Storage Unit > --- WEAPON (2) ------- Heavy Battle Rifle > --- INVENTORY (8) ---- Light Deuterium Engine Cooling System Spectral Analyzer Makeshift Hacking Suite EM Pulse Gun Subdweller Laser Missile Launcher Peak State ------------ > --- POWER ------------ Light Nuclear Core > --- PROPULSION ------- Compact Wheel Compact Wheel > --- UTILITY ---------- Small Storage Unit Medium Armor Plating > --- WEAPON ----------- Chainsword Ripteeth > --- INVENTORY -------- Ion Engine Cooling System Spectral Analyzer EM Pulse Gun Subdweller Laser Missile Launcher DRS Beacon [Rating: 18] Favorites ----------- Power Subdweller Power Source Engine Subdweller Power Source Power Core Light Nuclear Core Propulsion Compact Wheel Wheel Compact Wheel Utility Small Storage Unit Device Subdweller Optics Storage Small Storage Unit Protection Medium Armor Plating Weapon Chainsword Energy Gun EM Pulse Gun Ballistic Gun Heavy Battle Rifle Slashing Weapon Chainsword Build | -11 -10 -10 -9 ------- Run | Yrd Mat Sub Scr Slots Evolved . | . . . . Power . | . . . . Propulsion . | . . . . Utility . | . . . . Weapon . | . . . . Parts Attached 17 | 6 . 5 6 Power 4 | 1 . 1 2 Engine 3 | 1 . 1 1 Core 1 | . . . 1 Reactor . | . . . . Propulsion 3 | 2 . 1 . Treads . | . . . . Leg . | . . . . Wheel 3 | 2 . 1 . Hover . | . . . . Flight . | . . . . Utility 4 | 1 . 2 1 Device 2 | . . 2 . Storage 1 | 1 . . . Processor . | . . . . Hackware . | . . . . Protection 1 | . . . 1 Artifact . | . . . . Weapon 6 | 2 . 1 3 Energy Gun 3 | 2 . 1 . Energy Cannon . | . . . . Ballistic Gun 1 | . . . 1 Ballistic Cannon . | . . . . Launcher . | . . . . Special Weapon . | . . . . Impact Weapon . | . . . . Slashing Weapon 2 | . . . 2 Piercing Weapon . | . . . . Special Melee Weapon . | . . . . Unidentified Prototypes . | . . . . Parts Lost 4 | . . 1 3 Power 1 | . . . 1 Propulsion . | . . . . Utility 1 | . . . 1 Weapon 2 | . . 1 1 Highest Loss Streak 3 | . . 1 3 To Critical Strikes . | . . . . Average Backups 6 | 1 2 4 7 Power 1 | . 1 1 1 Propulsion . | . . . . Utility 1 | . . . 1 Weapon 2 | . 1 1 2 Tool/Special . | . . . . Unused Backups 9 | . . . 9 Power 1 | . . . 1 Propulsion . | . . . . Utility 4 | . . . 4 Weapon 3 | . . . 3 Tool/Special 1 | . . . 1 Average Slot Usage (%) 79 | . 85 97 76 Engine 12 | . 14 14 12 Wheel 26 | . 28 28 26 Device 3 | . . 11 1 Storage 14 | . 14 14 14 Protection 8 | . . . 10 Energy Gun 5 | . 28 27 . Slashing Weapon 6 | . . . 8 Peak Build Rating 18 | 6 6 12 18 Average Rating 9 | 4 6 9 10 On Entrance 6 | . 6 6 12 Avg Prop Armor Cover (%) . | . . . . Naked Turns . | . . . . Heaviest Build 23 | 14 14 18 23 Greatest Support 36 | 32 32 36 36 Greatest Overweight (x) 5 | . . . 5 Average Overweight (x) . | . . . . Largest Inventory Capacity 8 | 8 8 8 8 Average Capacity 7 | 6 8 8 8 Most Carried 8 | 2 2 7 8 Average Carried 6 | 1 2 4 7 Final Capacity 8 | 8 8 8 8 Final Carried 7 | 2 2 7 7 Class Distribution -------------------- 93% | Mutant 6% | Scavenger-Mutant Dominant Class ---------------- Mutant | -10/Materials Mutant | -10/Subcaves Mutant | -9/Scraptown Resources | -11 -10 -10 -9 ----------- Run | Yrd Mat Sub Scr Matter Collected 438 | 260 . 45 133 Remotely . | . . . . Salvage Created . | . . . . Parts . | . . . . Haulers Intercepted . | . . . . Recyclers Shooed . | . . . . Parts Field Recycled . | . . . . Retrieved Matter . | . . . . Parts Self-Destructed 5 | . . 5 . Prevented . | . . . . Parts Restored . | . . . . Kills | -11 -10 -10 -9 ------- Run | Yrd Mat Sub Scr Combat Hostiles Destroyed . | . . . . Classes Destroyed . | . . . . Best Kill Streak . | . . . . Combat Bots Only . | . . . . Max Kills in Single Turn . | . . . . Gunslinging . | . . . . Exploded . | . . . . Melee . | . . . . Uniques/NPCs Destroyed . | . . . . Combat | -11 -10 -10 -9 -------- Run | Yrd Mat Sub Scr Hostile Shots Fired 63 | . . 10 53 Missed 17 | . . 3 14 Hits 46 | . . 7 39 Melee 19 | . . . 19 Projectile 27 | . . 7 20 Critical Strikes 2 | . . . 2 Damage Taken 553 | . . 182 371 Core 187 | . . 38 149 Absorbed by Shields . | . . . . Core Remaining (%) 100 | 100 . . . Volleys Fired 10 | . . 9 1 Largest 2 | . . 2 1 Hottest 80 | . . 80 33 Shots Fired 15 | . . 14 1 Gun 15 | . . 14 1 Cannon . | . . . . Launcher . | . . . . Special . | . . . . Kinetic 1 | . . . 1 Thermal . | . . . . Explosive . | . . . . Electromagnetic 14 | . . 14 . Robot Hit Streak 4 | . . 4 . Robot Miss Streak 2 | . . 2 2 Penetration Max . | . . . . Secondary Targets . | . . . . Shots Hit Robots 9 | . . 8 1 Core Hits 1 | . . 1 . Critical Kills . | . . . . Critical Parts Destroyed . | . . . . Critical Strikes . | . . . . Melee Attacks 2 | . . . 2 Impact . | . . . . Slashing 2 | . . . 2 Piercing . | . . . . Sneak Attacks . | . . . . Combat Hostiles . | . . . . Follow-up Attacks . | . . . . Damage Inflicted 137 | . . 97 40 Guns 97 | . . 97 . Cannons . | . . . . Explosions . | . . . . Melee 40 | . . . 40 Ramming . | . . . . Kinetic . | . . . . Thermal . | . . . . Explosive . | . . . . Electromagnetic 97 | . . 97 . Impact . | . . . . Slashing 40 | . . . 40 Piercing . | . . . . Highest Corruption . | . . . . Average Corruption . | . . . . Corruption Purged . | . . . . Corruption Blocked . | . . . . Overload Shots . | . . . . Overflow Damage . | . . . . Projectiles . | . . . . Explosions . | . . . . Melee . | . . . . Knockbacks . | . . . . Impact . | . . . . Kinetic . | . . . . Secondary . | . . . . Self-Inflicted Damage . | . . . . Shots . | . . . . Rammed . | . . . . Targets Rammed . | . . . . Kicked . | . . . . Crushed . | . . . . Highest Temperature 41 | . . 14 41 Average Temperature 16 | . . 12 16 Received Heat Transfer 221 | . . 63 158 Siege Activations . | . . . . Martial Activations . | . . . . Shielding Activations . | . . . . Robots Disrupted . | . . . . Combat Hostiles . | . . . . Robots Corrupted . | . . . . Combat Hostiles . | . . . . Parts Fried . | . . . . Impact Corruptions . | . . . . Robots Melted . | . . . . Combat Hostiles . | . . . . Parts Melted . | . . . . Heat Transferred . | . . . . Parts Sabotaged . | . . . . Parts Stolen 4 | . . . 4 Parts Stripped . | . . . . Power Chain Reactions . | . . . . Alert | -11 -10 -10 -9 ------- Run | Yrd Mat Sub Scr Maximum Alert Level . | . . . . Low Security (%) 100 | 100 100 . . Level 1 . | . . . . Level 2 . | . . . . Level 3 . | . . . . Level 4 . | . . . . Level 5 . | . . . . High Security . | . . . . Max Security . | . . . . Peak Influence . | . . . . Initial . | . . . . Average . | . . . . Influence Increases . | . . . . Influence Decreases . | . . . . Squads Dispatched . | . . . . Investigation . | . . . . Extermination . | . . . . Reinforcement . | . . . . Assault . | . . . . Garrison . | . . . . Intercept . | . . . . Searches Triggered . | . . . . Construction Impeded . | . . . . Haulers Reinforced . | . . . . Active Scanning Responses . | . . . . Cargo Convoy Interrupts . | . . . . Stealth | -11 -10 -10 -9 --------- Run | Yrd Mat Sub Scr Distress Signals . | . . . . Communications Jammed . | . . . . Distress Signals . | . . . . Times Spotted 29 | . . 4 25 Peak Tracking Total 7 | . . 2 7 Tactical Retreats 2 | . . 1 1 Traps | -11 -10 -10 -9 ------- Run | Yrd Mat Sub Scr Traps Triggered . | . . . . Indirectly . | . . . . Trap Hack Attempts . | . . . . Triggered . | . . . . Disarmed . | . . . . Reprogrammed . | . . . . Reused . | . . . . Traps Extracted . | . . . . Installed . | . . . . Triggered . | . . . . Machines | -11 -10 -10 -9 ---------- Run | Yrd Mat Sub Scr Machines Disabled . | . . . . Max in Single Turn . | . . . . Machines Repaired . | . . . . Machines Dismantled . | . . . . Machines Sabotaged . | . . . . Overloaded Fab Kills . | . . . . Hacking | -11 -10 -10 -9 --------- Run | Yrd Mat Sub Scr Machines Accessed 6 | . . . 6 Terminals . | . . . . Fabricators . | . . . . Repair Stations . | . . . . Recycling Units . | . . . . Scanalyzers . | . . . . Garrison Access . | . . . . Total Hacks 35 | . . . 35 Successful 35 | . . . 35 Failed . | . . . . Catastrophic . | . . . . Database Lockouts . | . . . . Manual . | . . . . Terminals . | . . . . Fabricators . | . . . . Repair Stations . | . . . . Recycling Units . | . . . . Scanalyzers . | . . . . Garrison Access . | . . . . Terminal Hacks 35 | . . . 35 Record 35 | . . . 35 Fabricator Hacks . | . . . . Repair Station Hacks . | . . . . Recycling Unit Hacks . | . . . . Scanalyzer . | . . . . Garrison Access Hacks . | . . . . Unauthorized Hacks . | . . . . Terminals . | . . . . Fabricators . | . . . . Repair Stations . | . . . . Recycling Units . | . . . . Scanalyzers . | . . . . Garrison Access . | . . . . Data Cores Recovered . | . . . . Used . | . . . . Hacking Detections . | . . . . Full Trace Events . | . . . . Feedback Events . | . . . . Feedback Blocked . | . . . . Robot Schematics Acquired . | . . . . Robots Built . | . . . . Authchips . | . . . . Time . | . . . . Total Robot Build Rating . | . . . . Part Schematics Acquired . | . . . . Parts Built . | . . . . Authchips . | . . . . Time . | . . . . Total Part Build Rating . | . . . . Part Studies Acquired . | . . . . Parts Repaired . | . . . . Time . | . . . . Parts Recycled . | . . . . Recycled Matter . | . . . . Retrieved Matter . | . . . . Retrieved Components . | . . . . Parts Scanalyzed . | . . . . Part Schematics Acquired . | . . . . Parts Damaged . | . . . . Bothacking | -11 -10 -10 -9 ------------ Run | Yrd Mat Sub Scr Used RIF Installer . | . . . . Robots Hacked . | . . . . Non-combat . | . . . . Combat . | . . . . Robot Hacks Applied . | . . . . Relay Couplers Released . | . . . . Fabnet Peak Effective % . | . . . . Robots Rewired . | . . . . Allies Hacked . | . . . . Hacks Repelled . | . . . . Allies | -11 -10 -10 -9 -------- Run | Yrd Mat Sub Scr Total Allies . | . . . . Largest Group . | . . . . Highest-Rated Group . | . . . . Highest-Rated Ally . | . . . . Total Orders . | . . . . Ally Attacks . | . . . . Total Damage . | . . . . Kills . | . . . . Allies Corrupted . | . . . . Allies Melted 2 | . . . 2 Intel | -11 -10 -10 -9 ------- Run | Yrd Mat Sub Scr Active Infowar (turns) 392 | . . 203 189 Optics 392 | . . 203 189 Robot Analysis Total . | . . . . Derelict Logs Recovered 2 | . . . 2 Drone Launches . | . . . . Drone Recoveries . | . . . . Exploration | -11 -10 -10 -9 ------------- Run | Yrd Mat Sub Scr Turns Passed 1842 | 72 101 236 1433 Spaces Moved 1573 | 63 13 175 1322 Core 22 | 3 . . 19 Treads . | . . . . Legs . | . . . . Wheels 1551 | 60 13 175 1303 Hover . | . . . . Flight . | . . . . Fastest Speed 50 | 50 100 100 100 Average Speed 104 | 97 100 102 104 Slowest Speed 300 | 100 100 105 300 Overloaded Moves . | . . . . Propulsion Burnouts . | . . . . Robots Hopped . | . . . . Potential Cave-ins . | . . . . Cave-ins Triggered . | . . . . Exploration Rate (%) 26 | 5 4 16 79 Regions Visited 3 Branch Regions 2 Pre-discovered Areas . | . . . . Known Exits Taken . | . . . . Unknown Exits Taken 3 | 1 1 1 . Scrap Searched 3 | . . . 3 Spaces Dug . | . . . . Terrain Destroyed 1 | . . . 1 Melee . | . . . . Projectile 1 | . . . 1 AOE . | . . . . Terrain Rammed . | . . . . Walls Destroyed . | . . . . Machines Disabled . | . . . . Actions | -11 -10 -10 -9 --------- Run | Yrd Mat Sub Scr Total 1754 | 70 101 215 1368 Wait 120 | . 89 23 8 Move 1570 | 62 12 174 1322 Hop . | . . . . Pick Up 13 | 2 . 2 9 Fast Attach 17 | 6 . 2 9 Attach 2 | . . 1 1 Detach 2 | . . 1 1 Swap 5 | . . 3 2 Drop 13 | . . . 13 Fire 10 | . . 9 1 Melee 2 | . . . 2 Ram . | . . . . Kick . | . . . . Crush . | . . . . Escape Stasis . | . . . . Rewire . | . . . . Trap . | . . . . Miscellaneous . | . . . . Route ------- -11/Scrapyard -10/Materials -10/Subcaves -9/Scraptown (discovered 2 exits: *Fac x2) History --------- Turn | Location | Event 4 | -11/Scrapyard | Discovered new exit (range 15) 73 | -11/Scrapyard | Entered Materials 74 | -10/Materials | Met a group of wandering Federalists 167 | -10/Materials | Discovered new exit (range 4) 174 | -10/Materials | Entered Subcaves 174 | -10/Subcaves | Accompanied by 4 allies 175 | -10/Subcaves | Continued accompanying wandering Federalists (6) 403 | -10/Subcaves | Wandering Federalist uncovered a shortcut to Scraptown 410 | -10/Subcaves | Entered Scraptown 686 | -9/Scraptown | Visited Comm Corps 722 | -9/Scraptown | Build established: Mutant 750 | -9/Scraptown | Visited Fellowship of the Rings 774 | -9/Scraptown | Visited Bundlers 811 | -9/Scraptown | Visited Cave Peace 841 | -9/Scraptown | Heard Great Nut preacher, LISTEN AND RECITE! 878 | -9/Scraptown | Scanned Subdweller tech in exchange for log data 881 | -9/Scraptown | Learned Factory terminal intel 897 | -9/Scraptown | Discovered new exit (range 5) 1325 | -9/Scraptown | Visited UFD Registry 1325 | -9/Scraptown | Registered with UFD as "Flexifunk" 1389 | -9/Scraptown | Visited Observation Area 1433 | -9/Scraptown | Visited Scrap Suit Storage 1443 | -9/Scraptown | Found Scrap Suit 1465 | -9/Scraptown | Visited Scrapoid Pod Storage 1474 | -9/Scraptown | Visited Infowarlord's Domain 1482 | -9/Scraptown | Found Spectral Analyzer 1506 | -9/Scraptown | Visited Derelict Rescue Squad 1519 | -9/Scraptown | Found DRS Beacon 1556 | -9/Scraptown | Met Optimus 1556 | -9/Scraptown | Accepted into 0bPrime 1627 | -9/Scraptown | Civil war broke out across Scraptown 1724 | -9/Scraptown | Lost 8 allies 1752 | -9/Scraptown | Core integrity fell below 50% 1781 | -9/Scraptown | Lost 3 parts (1p1u1w) 1781 | -9/Scraptown | Identified exit to Factory 1804 | -9/Scraptown | Lost 4 allies 1843 | -9/Scraptown | Self-destructed Last Messages --------------- are elsewhere, after all. 01787_ Acquired Mak. Hacking Suite. 01795_ Bolt penetrates 3S-LLQ(E). 01798_ Dropped Chainsword. 01799_ Acquired Hvy. Battle Rifle. 01804_ Acquired 10 matter. 01808_ 3S-LLQ(E) suffers critical hit (Burn). 01808_ 3S-LLQ(E) destroyed. 01808_ 1Z-V0D(j) destroyed. 01818_ Acquired 10 matter. 01824_ Critical hit (Burn: +50). 01824_ KF-P3U(E) suffers critical hit (Burn). 01825_ KF-P3U(E): "To all who oppose us, at least your donations are appreciated." 01826_ KF-P3U(E) destroyed. 01826_ Acquired 3 matter. 01830_ Triborg suffers critical hit (Destroy). 01838_ CN-D3H(j) suffers critical hit (Destroy). 01838_ CN-D3H(j) destroyed. 01841_ Slug penetrates Q3-E3N(g). Map ----- +----------------------------------------------------+ | #???? ?????????? "#??????????" " | | ###### #???? ????????? "#????????????"""" | | ????# #?????? ???????? #?????????????# # | | ###### #########" ""######### ###???????##### # | | " # !%= !%[!%! #???????#"""" " | | # *! =%*=! #???????#" | | # =%! = =[!![![ =#???????#" | | # =%[ =%%*= %#???????#" | | # !! =!==![[ !#???????#" | | # #################%[!%! #????####" | | # #?????????????##[!!%!%[ #???#"""" | | # ##########????#*=%%=[=! #???#"""" | | # # #????##==!! #???#"""" | | """ #?????#"!! ! #???#"""" | | " # # """" #?????##%& %!#???#"""" | | " # # """X #??????# / ###?#"""" | | #### # """" #??????# * ""#"#"""" | | ???# # """ #??????#=%/ !/""""#"""" | | #### # #??????# = !%="#######" | | # ##########??????# /!###?????# %! | | # #???????????????# ! #########" ! | | #???????????????# !=! [%! ! | | # #???????????????# * %[%[! ! =%! ! | | # #???????????????#=!%==%=[ * =%= | | # #??????????????## % ! = = ! | | # ################@* TT %!* *%= | | # [=!%[=!%[ TT=![%!!! | | # !%[*!!%=! =/%!* | | #### !==!*[[ =%[ | | ???# ***![=!!= [ ! ! | | #### %*[ !=%=* [!%! = % | | j =! [ =** =*%!! !%#""""#" | | ! %! /%===%! [#????#" | | = !%= !%! *% #????#"""""" | | ###### ######;#########;|## ##; % ####????####### | | #?# #?????? "## j #????????????"" | | #?#" "#????? "?# #??????????? | | #?#" "###### "#?????? %"?# #?????????? " | | #?#" # """#" "#????? """ ?"?# #?????????# " | | #?#" "# #" "#????" """ ???# #?????????#"?" | | #?#" "#"" # "#????"? ??"????# #???????????? | | #?#" "###+## "#??????????????# #????????????" | | #?#" "#??????????????# #????????????" | | #?#""""""""""""#??????????????# #????????????## | | #?##############??????????????# #?????????????? | | #?????????????????????????????# #?????????????? | | #??????????????????############ #?????????????? | | #??????????????????#""""""""""" #?????????????? | | #??????????????????#""""" """"" #?????????????? | | ##???????????#######"""" " "" #?????????????? | +----------------------------------------------------+ Best States ------------- Heat Dissipation 25 Energy Generation 15 Energy Capacity 250 Matter Stores 300 Matter Capacity 300 Sight Range 21 Terrain Scan Density 10 Armor Coverage 225 Evasion (%) 40 Item Schematics ----------------- None Robot Schematics ------------------ None Fabricated ------------ Nothing Repaired ---------- Nothing Studied --------- None Alien Tech Used ----------------- None Achievements -------------- Civilization 2243 Link The Feds Strength In Numbers Challenges ------------ None Game ------ Seed ArmorScanFlightbrick Manual? 0 Play Time 00:32:02 Cumulative 54.3 hours Start 2026.01.07 @ 01:08:08 End 2026.01.07 @ 02:21:24 Sessions 1 Manual Loads 0 Difficulty Rogue Special Mode None Game No. 75 Rogue 75 Adventurer 0 Explorer 0 Win Type - Total 0 Types 0/0/0/0/0/0/0/0/0/0 Lore% 13 Gallery% 29 Achievement% 21 Wizard Run 0 Options --------- Layout 1 ASCII 0 Keyboard 0 Movement Mouse Keybinds 0 Fullscreen 2 Font 24/Smallcaps Map View 50x35 Zoom Use 2% Tactical HUD 1 Map Filters NONE Filters NONE Steam 1 RUN: d8ead142-114f-43c7-ae74-197c3ac086eb